bitfinex-derivatives/quotes_ETHF0:USTF0_20250330
["timestamp","ask_amount","ask_price","bid_price","bid_amount"]
[1743329145375,1.3756,1843.4,1843.3,2.50791]
[1743329146175,2.46085,1843.4,1843.3,1.4226]
[1743329147583,1.3756,1843.4,1843.3,2.50791]
[1743329149388,2.46085,1843.4,1843.3,2.50791]
[1743329150288,1.3756,1843.4,1843.3,2.50791]
[1743329150881,2.46085,1843.4,1843.3,2.50791]
[1743329151489,1.3756,1843.4,1843.3,2.50791]
[1743329154090,0.00812656,1843.5,1843.4,1.08525]
[1743329155090,0.00812656,1843.5,1843.4,2.44575]
[1743329167599,1.84571656,1843.5,1843.4,1.3605]
[1743329167793,1.08525,1843.4,1843.3,0.7053]
[1743329168095,1.08525,1843.4,1843.3,1.79061]
[1743329168096,1.4237,1843.4,1843.3,1.79061]
[1743329175900,1.09335656,1843.5,1843.3,1.79061]
[1743329176104,0.00812656,1843.5,1843.4,2.46935]
[1743329176304,0.00812656,1843.5,1843.4,3.19895]
[1743329177204,1.82447,1843.8,1843.7,1.08507]
[1743329177205,1.4236,1843.8,1843.7,1.08507]
[1743329177402,3.2078,1843.9,1843.8,1.08502]
[1743329177703,3.2078,1844.5,1844.2,1.08478]
[1743329177899,1.4236,1844.3,1844.2,1.08478]
[1743329178204,1.4236,1844.3,1844.0,4.8291]
[1743329178398,1.4236,1844.3,1844.2,1.08478]
[1743329178802,1.4236,1844.3,1844.2,1.82578]
[1743329182001,2.50832,1844.3,1844.2,0.741]
[1743329182203,2.50832,1844.3,1844.1,2.47582656]
[1743329182404,1.3993,1844.2,1844.1,2.47582656]
[1743329191210,2.48408,1844.2,1844.1,1.39102656]
[1743329191813,2.48408,1844.2,1844.1,2.47586656]
[1743329192313,1.3993,1844.2,1844.1,2.47586656]
[1743329193316,2.48408,1844.2,1844.1,2.47586656]
[1743329193622,1.3993,1844.2,1844.1,2.47586656]
[1743329194815,2.48408,1844.2,1844.1,1.39102656]
[1743329195813,2.48408,1844.2,1844.1,2.47586656]
[1743329196007,2.48408,1844.2,1844.1,1.39102656]
[1743329196607,2.48408,1844.2,1844.1,0.00812656]
[1743329197015,1.08502,1843.8,1843.7,3.2078]
[1743329198309,2.53572,1843.8,1843.7,4.6497]
[1743329199119,2.53572,1843.8,1843.7,3.2078]
[1743329199314,3.24502,1843.8,1843.7,3.2078]
[1743329200121,1.08507,1843.7,1843.6,0.00812656]
[1743329200310,2.49557,1843.7,1843.6,0.00812656]
[1743329200612,1.08524,1843.5,1843.4,1.4002]
[1743329201210,2.49574,1843.5,1843.4,1.4002]
[1743329204413,1.4105,1843.5,1843.4,1.4002]
[1743329204619,1.08515,1843.6,1843.4,2.4854]
[1743329204819,1.08515,1843.6,1843.5,0.7307]
[1743329205021,1.08515,1843.6,1843.5,2.1578]
[1743329205913,2.45925,1843.6,1843.5,2.1578]
[1743329211521,1.3741,1843.6,1843.3,3.96012656]
[1743329211723,1.08525,1843.4,1843.3,6.10832656]
[1743329212419,1.08525,1843.4,1843.3,7.19363656]
[1743329214524,2.52093,1843.5,1843.3,7.19363656]
[1743329214721,1.08523,1843.5,1843.4,1.4959]
[1743329214914,1.08516,1843.6,1843.4,2.5811]
[1743329215121,1.08516,1843.6,1843.5,1.3635]
[1743329216621,1.08525,1843.4,1843.3,4.65492656]
[1743329217013,1.08525,1843.4,1843.3,5.74023656]
[1743329217218,2.50503,1843.5,1843.3,5.74023656]
[1743329217615,1.4198,1843.5,1843.3,5.74020656]
[1743329217823,2.50503,1843.5,1843.3,5.74020656]
[1743329218026,2.50503,1843.5,1843.4,1.4079]
[1743329220525,2.50503,1843.5,1843.4,2.49315]
[1743329220822,1.08518,1843.6,1843.4,2.49315]
[1743329221029,1.08513,1843.6,1843.5,1.3744]
[1743329221331,2.45993,1843.6,1843.5,1.3744]
[1743329225026,1.3748,1843.6,1843.5,1.08519]
[1743329225222,1.08504,1843.8,1843.7,1.08507]
[1743329225431,1.09311656,1843.9,1843.7,1.08507]
[1743329225625,1.09311656,1843.9,1843.8,2.45932]
[1743329225626,1.41982656,1843.9,1843.8,2.45932]
[1743329225826,2.50478656,1843.9,1843.8,1.3743]
[1743329226831,1.08507,1843.7,1843.6,1.4656]
[1743329227034,1.08507,1843.7,1843.6,2.8574]
[1743329227432,2.50427,1843.7,1843.6,2.8574]
[1743329232128,1.4192,1843.7,1843.6,3.94253]
[1743329232435,1.4874,1843.8,1843.7,1.08506]
[1743329232640,1.4874,1843.8,1843.7,2.44666]
[1743329233929,0.00812656,1843.9,1843.8,1.08502]
[1743329234141,1.09308656,1843.9,1843.8,1.08502]
[1743329235343,0.00812656,1843.9,1843.7,2.44663]
[1743329235542,1.09313656,1843.9,1843.8,1.4839]
[1743329236232,2.55253656,1843.9,1843.8,1.4839]
[1743329236840,1.08504,1843.8,1843.6,5.98769]
[1743329237138,2.54444,1843.8,1843.7,1.484]
[1743329240343,2.54444,1843.8,1843.7,2.56907]
[1743329243646,1.4594,1843.8,1843.7,2.56907]
[1743329245441,2.54442,1843.8,1843.7,2.56907]
[1743329247045,1.4594,1843.8,1843.7,2.56907]
[1743329248549,1.09312656,1843.9,1843.7,2.56907]
[1743329248550,1.09312656,1843.9,1843.8,1.08502]
[1743329248744,1.09312656,1843.9,1843.8,1.5046]
[1743329249447,2.57742656,1843.9,1843.8,1.5046]
[1743329249649,1.49242656,1843.9,1843.8,2.58962]
[1743329249848,0.00812656,1843.9,1843.8,2.58962]
[1743329250548,0.00812656,1843.9,1843.7,4.29283]
[1743329250751,1.08502,1843.8,1843.6,6.4072]
[1743329250945,1.08502,1843.8,1843.7,1.5046]
[1743329251147,2.56932,1843.8,1843.7,1.5046]
[1743329251650,2.56932,1843.8,1843.7,2.58967]
[1743329251851,1.4843,1843.8,1843.7,2.58967]
[1743329252452,2.56932,1843.8,1843.7,2.58967]
[1743329253248,1.4843,1843.8,1843.7,2.58967]
[1743329254361,2.56932,1843.8,1843.7,2.58967]
[1743329254550,2.56932,1843.8,1843.7,1.5046]
[1743329254751,2.56932,1843.8,1843.7,2.58967]
[1743329257254,1.4843,1843.8,1843.7,2.58967]
[1743329258156,2.56932,1843.8,1843.7,2.58967]
[1743329259552,2.56932,1843.8,1843.7,1.5046]
[1743329259955,2.56932,1843.8,1843.6,0.7193]
[1743329259956,1.08507,1843.7,1843.6,0.7193]
[1743329260152,3.21997,1843.7,1843.6,0.7193]
[1743329260356,1.08513,1843.6,1843.5,3.2078]
[1743329260557,2.49033,1843.6,1843.5,3.2078]
[1743329260966,2.49033,1843.6,1843.5,4.29299]
[1743329261459,2.49033,1843.6,1843.5,5.76999]
[1743329263560,2.49033,1843.6,1843.5,4.6848]
[1743329272371,2.49033,1843.6,1843.5,1.477]
[1743329272570,2.49033,1843.6,1843.5,4.6848]
[1743329273572,2.49033,1843.6,1843.5,5.76999]
[1743329273771,2.49033,1843.6,1843.5,4.6848]
[1743329273974,2.49033,1843.6,1843.5,5.76999]
[1743329274273,1.4052,1843.6,1843.5,5.76999]
[1743329275580,0.00812656,1843.9,1843.5,5.76999]
[1743329275880,1.08507,1843.7,1843.6,1.4312]
[1743329277478,1.08507,1843.7,1843.6,2.51633]
[1743329277680,1.371,1843.8,1843.7,1.08507]
[1743329277881,0.00812656,1843.9,1843.8,1.08502]
[1743329278385,1.37912656,1843.9,1843.8,2.51622]
[1743329278771,2.46408656,1843.9,1843.8,2.51622]
[1743329278982,1.37912656,1843.9,1843.8,2.51622]
[1743329280285,2.46408656,1843.9,1843.8,1.4312]
[1743329280981,1.08502,1843.8,1843.7,1.4749]
[1743329281283,2.49662,1843.8,1843.7,1.4749]
[1743329282085,2.49662,1843.8,1843.7,2.9753]
[1743329288585,2.49662,1843.8,1843.7,4.06037]
[1743329288787,2.49662,1843.8,1843.7,2.9753]
[1743329292589,1.4116,1843.8,1843.5,3.2078]
[1743329292784,1.08513,1843.6,1843.5,2.9457]
[1743329293191,2.47053,1843.6,1843.5,2.9457]
[1743329293792,2.47053,1843.6,1843.5,4.03089]
[1743329295991,2.47053,1843.6,1843.5,2.9457]
[1743329296193,2.47053,1843.6,1843.5,4.03089]
[1743329296692,2.47053,1843.6,1843.5,2.9457]
[1743329297692,2.47053,1843.6,1843.5,4.03089]
[1743329298296,1.3854,1843.6,1843.5,4.03089]
[1743329298897,2.47053,1843.6,1843.5,4.03089]
[1743329299694,1.0851,1843.7,1843.6,1.08513]
[1743329299890,1.0851,1843.7,1843.6,2.59313]
[1743329302701,1.4128,1843.8,1843.7,1.08507]
[1743329302905,3.94252656,1843.9,1843.7,1.08507]
[1743329302906,0.00812656,1843.9,1843.8,1.08502]
[1743329303200,0.00812656,1843.9,1843.8,2.57662]
[1743329303902,0.00812656,1843.9,1843.8,4.03512]
[1743329307897,0.00812656,1843.9,1843.8,7.24292]
[1743329308906,1.08484,1844.1,1844.0,1.08488]
[1743329309605,1.08482,1844.2,1844.0,1.08488]
[1743329309798,1.08482,1844.2,1844.1,2.1146]
[1743329311198,2.52702,1844.2,1844.1,2.1146]
[1743329313298,1.4422,1844.2,1844.1,3.19944]
[1743329313614,0.71912656,1844.3,1844.1,3.19944]
[1743329313615,3.2078,1844.8,1844.5,1.0846]
[1743329313795,1.08445,1844.8,1844.4,3.2078]
[1743329313996,1.08445,1844.8,1844.5,1.4274]
[1743329313997,1.3904,1844.7,1844.5,1.4274]
[1743329314195,1.3904,1844.7,1844.6,4.52049]
[1743329314408,1.08431,1845.0,1844.8,1.08439]
[1743329314707,2.47471,1845.0,1844.9,1.4484]
[1743329315309,1.3904,1845.0,1844.9,2.53277]
[1743329316306,1.3904,1845.0,1844.9,1.4484]
[1743329316508,2.47471,1845.0,1844.9,1.4484]
[1743329324918,2.47471,1845.0,1844.9,2.8471]
[1743329325705,1.08431,1845.0,1844.9,2.8471]
[1743329325910,1.4031,1845.1,1844.9,3.93147]
[1743329326106,1.4031,1845.1,1845.0,1.3987]
[1743329326410,2.48735,1845.1,1845.0,1.3987]
[1743329332618,1.08431,1845.0,1844.9,1.4484]
[1743329332814,3.28241,1845.0,1844.9,1.4484]
[1743329333126,2.58111,1845.0,1844.9,1.4484]
[1743329333323,2.58111,1845.0,1844.9,2.9227]
[1743329336322,2.58111,1845.0,1844.9,2.2195]
[1743329348216,1.08443,1844.8,1844.7,0.00812656]
[1743329348827,1.78523,1844.8,1844.7,0.00812656]
[1743329351924,1.08443,1844.8,1844.7,0.00812656]
[1743329352525,2.44863,1844.8,1844.7,0.00812656]
[1743329352925,2.44863,1844.8,1844.7,1.47402656]
[1743329353731,1.08441,1844.9,1844.7,2.55846656]
[1743329354030,1.08441,1844.9,1844.8,0.7132]
[1743329354233,1.08441,1844.9,1844.8,2.8646]
[1743329355326,2.45571,1844.9,1844.8,2.8646]
[1743329362438,2.45571,1844.9,1844.8,3.94903]
[1743329363135,2.45571,1844.9,1844.8,2.8646]
[1743329363730,2.45571,1844.9,1844.8,3.94903]
[1743329364439,2.45571,1844.9,1844.8,2.8646]
[1743329365025,2.45571,1844.9,1844.8,3.94903]
[1743329365639,2.45567,1844.9,1844.8,3.94903]
[1743329365839,1.3713,1844.9,1844.8,3.94903]
[1743329366135,3.2078,1845.1,1844.8,3.94903]
[1743329366336,0.6887,1845.3,1845.0,1.08426]
[1743329366533,2.46233,1845.2,1845.1,2.7857]
[1743329366932,3.17053,1845.2,1845.1,2.7857]
[1743329368738,3.17053,1845.2,1845.0,1.0843]
[1743329368739,1.08429,1845.1,1844.9,4.29213]
[1743329368941,1.3982,1845.0,1844.9,7.18893]
[1743329370041,2.48251,1845.0,1844.9,7.18893]
[1743329370244,1.3982,1845.0,1844.9,7.18893]
[1743329370431,2.48251,1845.0,1844.9,7.18893]
[1743329370640,2.48251,1845.0,1844.9,6.1046]
[1743329371044,2.48251,1845.0,1844.9,7.18897]
[1743329371243,1.3982,1845.0,1844.9,7.18897]
[1743329371543,2.48251,1845.0,1844.9,7.18897]
[1743329371743,2.48251,1845.0,1844.9,3.9262]
[1743329371944,1.08443,1844.8,1844.7,3.21592656]
[1743329372241,3.90391,1844.9,1844.8,1.08443]
[1743329372637,3.90391,1844.9,1844.7,5.77736656]
[1743329372832,1.5006,1844.8,1844.7,5.77736656]
[1743329376737,2.58503,1844.8,1844.7,4.69292656]
[1743329381948,2.58503,1844.8,1844.7,5.77741656]
[1743329382249,1.5006,1844.8,1844.7,5.77741656]
[1743329382657,5.91833,1845.2,1844.7,4.69292656]
[1743329382858,1.0844,1844.9,1844.8,1.4968]
[1743329383048,1.0844,1844.9,1844.8,2.58123]
[1743329383949,2.4863,1844.9,1844.8,2.58123]
[1743329384151,1.4019,1844.9,1844.8,2.58123]
[1743329384350,2.48627,1844.9,1844.8,2.58123]
[1743329384750,1.4019,1844.9,1844.8,2.58123]
[1743329384947,2.48627,1844.9,1844.8,2.58123]
[1743329386060,1.4019,1844.9,1844.8,2.58123]
[1743329386561,2.48627,1844.9,1844.8,2.58123]
[1743329391565,1.4019,1844.9,1844.8,2.58123]
[1743329391767,1.08434,1845.0,1844.8,1.4968]
[1743329391962,2.56614,1845.0,1844.9,2.1112]
[1743329394462,1.4818,1845.0,1844.9,3.19557]
[1743329394669,1.4818,1845.0,1844.9,6.40337]
[1743329394869,1.80473,1845.2,1845.0,1.08427]
[1743329395161,2.50793,1845.2,1845.1,1.08425]
[1743329395571,2.50793,1845.2,1845.1,2.50585]
[1743329396975,1.4237,1845.2,1845.1,2.50585]
[1743329401880,2.50789,1845.2,1845.1,2.50585]
[1743329402082,1.4237,1845.2,1845.1,2.50585]
[1743329405184,1.08417,1845.3,1845.2,1.08419]
[1743329405485,2.46567,1845.3,1845.2,3.23869]
[1743329405984,2.46567,1845.3,1845.2,2.1545]
[1743329409378,2.46567,1845.3,1845.2,3.23869]
[1743329409687,2.46567,1845.3,1845.2,2.1545]
[1743329418592,5.67347,1845.3,1845.2,2.1545]
[1743329421492,2.46567,1845.3,1845.2,2.1545]
[1743329421690,5.67347,1845.3,1845.2,2.1545]
[1743329425196,2.46567,1845.3,1845.2,2.1545]
[1743329425396,5.67347,1845.3,1845.2,2.1545]
[1743329426699,1.3815,1845.3,1845.2,3.23869]
[1743329429099,4.29185,1845.5,1845.2,2.1545]
[1743329429405,3.2078,1845.5,1845.4,1.08407]
[1743329429897,5.70722,1845.5,1845.4,2.45897]
[1743329431809,5.70722,1845.5,1845.4,1.3749]
[1743329432806,2.49942,1845.5,1845.4,1.3749]
[1743329433106,1.4154,1845.5,1845.4,2.45897]
[1743329435109,2.49942,1845.5,1845.4,2.45897]
[1743329435604,2.49942,1845.5,1845.4,1.3749]
[1743329435907,2.49942,1845.5,1845.4,2.45897]
[1743329438511,2.49942,1845.5,1845.4,1.3749]
[1743329438809,2.49942,1845.5,1845.4,2.45897]
[1743329439413,2.49942,1845.5,1845.4,1.3749]
[1743329442012,3.23072,1845.5,1845.4,1.3749]
[1743329443515,1.08407,1845.4,1845.3,0.6826]
[1743329443810,1.08407,1845.4,1845.3,2.0719]
[1743329443811,2.54607,1845.4,1845.3,2.0719]
[1743329444314,1.08413,1845.3,1845.2,0.7206]
[1743329444509,1.462,1845.3,1845.0,5.4972]
[1743329444708,1.08425,1845.1,1845.0,5.4972]
[1743329445110,2.54625,1845.1,1845.0,5.4972]
[1743329446510,2.54625,1845.1,1844.9,0.7185]
[1743329446511,1.08431,1845.0,1844.9,0.7185]
[1743329446813,2.48751,1845.0,1844.9,0.7185]
[1743329447611,1.4032,1845.0,1844.9,1.80287]
[1743329447815,1.4032,1845.0,1844.9,6.48827]
[1743329448112,1.4032,1845.0,1844.9,3.28047]
[1743329456609,2.48751,1845.0,1844.9,3.28047]
[1743329456814,2.48751,1845.0,1844.9,2.1961]
[1743329457014,2.48751,1845.0,1844.9,3.28047]
[1743329458522,2.48751,1845.0,1844.9,2.1961]
[1743329459325,2.48751,1845.0,1844.9,3.28047]
[1743329464422,1.4032,1845.0,1844.9,3.28047]
[1743329465627,1.4032,1845.0,1844.9,6.48827]
[1743329465828,1.4032,1845.0,1844.9,3.28047]
[1743329466222,1.81782,1845.2,1844.9,2.1961]
[1743329466423,5.91779,1845.6,1845.0,2.1784]
[1743329466625,1.08411,1845.4,1845.2,1.08417]
[1743329466822,2.2114,1845.5,1845.3,2.9267]
[1743329467024,2.57982,1845.5,1845.4,1.4932]
[1743329471235,3.29442,1845.5,1845.4,1.4932]
[1743329471639,2.2104,1845.5,1845.0,1.08429]
[1743329471834,1.08423,1845.2,1845.0,1.08429]
[1743329472035,2.46455,1845.1,1845.0,1.4216]
[1743329472336,1.3803,1845.1,1845.0,2.50591]
[1743329472537,2.46455,1845.1,1845.0,1.4216]
[1743329473832,2.46455,1845.1,1845.0,2.50591]
[1743329474030,2.46455,1845.1,1845.0,1.4216]
[1743329474236,2.46455,1845.1,1845.0,2.50591]
[1743329476941,1.3803,1845.1,1845.0,2.50591]
[1743329483746,2.46455,1845.1,1845.0,1.4216]
[1743329483947,2.46455,1845.1,1845.0,2.50591]
[1743329485148,1.3803,1845.1,1845.0,2.50591]
[1743329485343,1.08419,1845.3,1845.1,1.08423]
[1743329485554,1.08419,1845.3,1845.2,1.4699]
[1743329486550,2.54589,1845.3,1845.2,1.4699]
[1743329490952,1.08419,1845.2,1845.1,1.76563]
[1743329491253,2.58049,1845.2,1845.1,1.76563]
[1743329493049,2.58049,1845.2,1845.1,0.6814]
[1743329493550,2.58049,1845.2,1845.1,2.1704]
[1743329497862,2.58049,1845.2,1845.1,3.25465]
[1743329498354,1.4963,1845.2,1845.1,3.25465]
[1743329498562,1.08418,1845.3,1845.2,1.08419]
[1743329498758,2.54568,1845.3,1845.2,3.27879]
[1743329500361,2.54568,1845.3,1845.2,2.1946]
[1743329504559,2.54568,1845.3,1845.2,3.27879]
[1743329504764,2.54568,1845.3,1845.2,2.1946]
[1743329513062,4.17187,1845.3,1844.7,4.30040656]
[1743329513358,1.08443,1844.8,1844.7,2.88172656]
[1743329514261,2.44613,1844.8,1844.7,2.88172656]
[1743329514468,2.44613,1844.8,1844.7,3.96621656]
[1743329514966,1.3617,1844.8,1844.7,3.96621656]
[1743329516263,2.44613,1844.8,1844.7,2.88172656]
[1743329517365,2.44613,1844.8,1844.7,3.96621656]
[1743329517566,2.44613,1844.8,1844.7,2.88172656]
[1743329522461,1.3617,1844.8,1844.7,3.96621656]
[1743329523066,1.08442,1844.9,1844.8,1.08443]
[1743329523269,1.08442,1844.9,1844.8,1.3824]
[1743329523962,2.50032,1844.9,1844.8,1.3824]
[1743329525273,1.08443,1844.8,1844.7,0.72512656]
[1743329525457,2.54533,1844.8,1844.7,0.72512656]
[1743329525863,2.54533,1844.8,1844.7,2.19002656]
[1743329532870,2.54533,1844.8,1844.7,2.89792656]
[1743329535874,1.4609,1844.8,1844.7,3.98241656]
[1743329536069,1.08439,1844.9,1844.8,1.08443]
[1743329536269,2.45789,1844.9,1844.8,1.3659]
[1743329537265,3.2078,1845.2,1845.0,1.08428]
[1743329537470,5.79082,1845.2,1845.1,1.3706]
[1743329537671,2.58302,1845.2,1845.1,2.791]
[1743329541281,5.79082,1845.2,1845.1,0.7149]
[1743329542982,5.79082,1845.2,1845.1,2.0992]
[1743329543177,1.08437,1844.9,1844.8,1.83391]
[1743329543375,1.08436,1845.0,1844.8,3.92221]
[1743329543575,1.4555,1844.9,1844.8,3.92221]
[1743329544680,1.08428,1845.1,1844.9,1.08437]
[1743329544869,1.4555,1845.1,1845.0,1.08427]
[1743329545281,1.08422,1845.2,1845.0,1.08427]
[1743329545583,2.53972,1845.2,1845.1,3.25475]
[1743329546483,2.53972,1845.2,1845.1,2.1705]
[1743329546885,2.53972,1845.2,1845.1,2.8865]
[1743329547088,2.53972,1845.2,1845.1,3.97075]
[1743329547382,2.53972,1845.2,1845.1,2.8865]
[1743329548578,1.08429,1845.1,1844.7,6.64492656]
[1743329548781,2.52779,1845.1,1844.8,2.0542]
[1743329548981,2.52779,1845.1,1844.9,2.45453]
[1743329549184,1.4435,1845.0,1844.9,2.45453]
[1743329549382,1.4435,1845.0,1844.9,1.08433]
[1743329551686,4.611,1845.4,1845.1,1.08425]
[1743329551887,2.51569,1845.3,1845.2,0.7221]
[1743329553195,2.51569,1845.3,1845.2,1.4579]
[1743329554194,2.51569,1845.3,1845.2,0.7358]
[1743329556596,1.4315,1845.3,1845.2,1.81999]
[1743329557296,2.51563,1845.3,1845.2,1.81999]
[1743329557895,1.4315,1845.3,1845.2,1.81999]
[1743329561495,2.51563,1845.3,1845.2,1.81999]
[1743329561696,1.4315,1845.3,1845.2,1.81999]
[1743329565199,1.4315,1845.3,1845.2,3.26779]
[1743329565507,3.2078,1845.4,1845.3,1.08413]
[1743329565704,1.378,1845.5,1845.4,1.08407]
[1743329566310,1.378,1845.5,1845.4,2.53187]
[1743329578116,5.03004,1845.7,1845.6,1.08396]
[1743329578315,6.40554,1845.7,1845.6,1.08396]
[1743329578616,3.19774,1845.7,1845.5,4.04218]
[1743329578816,1.3755,1845.6,1845.5,4.04218]
[1743329586224,0.7528,1845.8,1845.5,2.9582]
[1743329586525,0.7528,1845.8,1845.7,1.0839]
[1743329586724,1.7675,1845.9,1845.8,1.08384]
[1743329587316,2.5087,1845.9,1845.7,1.81897656]
[1743329587513,1.4465,1845.8,1845.7,1.81897656]
[1743329587719,2.53034,1845.8,1845.7,1.81897656]
[1743329588023,2.53034,1845.8,1845.7,0.73512656]
[1743329588216,2.53034,1845.8,1845.7,1.09202656]
[1743329588419,1.4465,1845.8,1845.7,1.09202656]
[1743329589827,1.4465,1845.8,1845.7,2.59722656]
[1743329590825,2.53034,1845.8,1845.7,2.59722656]
[1743329591025,1.4465,1845.8,1845.7,2.59722656]
[1743329591227,2.53034,1845.8,1845.7,2.59722656]
[1743329592433,1.4465,1845.8,1845.7,2.59722656]
[1743329593423,2.53034,1845.8,1845.7,2.59722656]
[1743329593620,1.4465,1845.8,1845.7,2.59722656]
[1743329598536,2.53034,1845.8,1845.7,2.59722656]
[1743329598937,1.4465,1845.8,1845.7,2.59722656]
[1743329602035,2.53034,1845.8,1845.7,2.59722656]
[1743329602241,1.4465,1845.8,1845.7,2.59722656]
[1743329607245,2.53034,1845.8,1845.7,2.59722656]
[1743329607443,1.4465,1845.8,1845.7,2.59722656]
[1743329607647,2.53034,1845.8,1845.7,0.00812656]
[1743329612947,2.70979,1845.7,1845.2,4.29197]
[1743329613148,1.0841,1845.4,1845.3,1.4014]
[1743329613345,1.08413,1845.3,1845.2,4.687]
[1743329613548,1.08413,1845.3,1845.2,3.2078]
[1743329613845,3.2078,1845.3,1844.9,1.4311]
[1743329614052,1.0843,1845.1,1844.9,3.90647]
[1743329614257,1.3936,1845.0,1844.9,3.91459656]
[1743329619157,4.29204,1845.2,1845.0,1.08431]
[1743329619358,4.7142,1845.2,1845.1,2.46855]
[1743329622659,5.79839,1845.2,1845.1,1.3843]
[1743329624564,4.7142,1845.2,1845.1,2.46855]
[1743329627558,1.5064,1845.2,1845.1,2.46855]
[1743329627759,4.7142,1845.2,1845.1,2.46855]
[1743329628468,5.79839,1845.2,1845.1,2.46855]
[1743329629569,4.7142,1845.2,1845.1,2.46855]
[1743329630867,1.5064,1845.2,1845.1,2.46855]
[1743329635466,0.00812656,1845.4,1845.1,1.3843]
[1743329635661,0.00812656,1845.4,1845.3,1.08413]
[1743329635862,1.43442656,1845.4,1845.3,1.08413]
[1743329636168,2.51849656,1845.4,1845.3,1.4615]
[1743329637174,2.51849656,1845.4,1845.3,2.54563]
[1743329639670,2.51849656,1845.4,1845.3,1.4615]
[1743329639872,1.08413,1845.3,1845.2,1.83749]
[1743329640068,2.53093,1845.3,1845.2,0.7533]
[1743329640473,2.53093,1845.3,1845.2,2.2429]
[1743329640671,1.4468,1845.3,1845.2,3.32709]
[1743329641172,2.53093,1845.3,1845.2,3.32709]
[1743329642670,2.53093,1845.3,1845.2,2.2429]
[1743329642976,1.08419,1845.2,1845.0,4.51128]
[1743329643169,3.22469,1845.2,1845.1,1.08425]
[1743329643372,3.22469,1845.2,1845.1,2.45715]
[1743329646867,2.1405,1845.2,1845.1,2.45715]
[1743329647066,1.4251,1845.2,1845.1,2.45715]
[1743329650072,1.4251,1845.2,1845.1,1.3729]
[1743329650272,2.50929,1845.2,1845.1,1.3729]
[1743329651182,2.50929,1845.2,1845.1,2.45715]
[1743329651680,1.4251,1845.2,1845.1,2.45715]
[1743329653384,3.21592656,1845.4,1845.2,1.08416]
[1743329653580,4.29999656,1845.4,1845.3,1.4865]
[1743329654685,1.08413,1845.3,1845.2,0.7212]
[1743329654976,4.85716,1845.3,1844.9,0.00812656]
[1743329655177,1.08431,1845.0,1844.9,0.00812656]
[1743329656085,1.80641,1845.0,1844.9,0.00812656]
[1743329656287,3.24221,1845.0,1844.9,0.00812656]
[1743329657083,1.4358,1845.0,1844.9,1.09249656]
[1743329657276,2.52011,1845.0,1844.9,4.06329656]
[1743329657473,1.4358,1845.0,1844.9,4.06329656]
[1743329658079,2.52011,1845.0,1844.9,2.97892656]
[1743329659187,3.23921,1845.0,1844.9,0.00812656]
[1743329661277,3.23921,1845.0,1844.9,1.49312656]
[1743329667792,3.23921,1845.0,1844.9,0.00812656]
[1743329670593,8.29271,1845.0,1844.6,1.4657]
[1743329670793,1.08449,1844.7,1844.6,2.8389]
[1743329671388,1.08449,1844.7,1844.6,2.1081]
[1743329671598,1.08454,1844.6,1844.5,3.2078]
[1743329671795,1.08454,1844.6,1844.5,3.21592656]
[1743329672102,1.08454,1844.6,1844.5,0.00812656]
[1743329672397,1.08454,1844.6,1844.5,1.47782656]
[1743329672598,2.49144,1844.6,1844.5,1.47782656]
[1743329674502,3.21624,1844.6,1844.5,1.47782656]
[1743329675097,3.21624,1844.6,1844.5,0.00812656]
[1743329675300,1.08472,1844.3,1844.2,3.2078]
[1743329675491,1.08472,1844.3,1844.2,4.6715]
[1743329675700,1.08472,1844.3,1843.6,0.43670425]
[1743329675701,2.71222,1844.1,1843.6,0.43670425]
[1743329675894,3.2078,1843.7,1843.1,3.32295005]
[1743329676094,4.29309,1843.4,1843.2,1.4637]
[1743329676695,1.4039,1843.3,1843.2,1.4637]
[1743329677406,2.48921,1843.3,1843.2,1.4637]
[1743329677903,0.00812656,1843.5,1843.3,1.08531]
[1743329678104,0.00812656,1843.5,1843.4,1.4034]
[1743329678304,1.09331656,1843.5,1843.4,2.1515]
[1743329678500,2.58571656,1843.5,1843.4,2.1515]
[1743329679701,0.00812656,1843.5,1843.4,2.1515]
[1743329681404,0.00812656,1843.5,1843.4,2.8549]
[1743329682611,1.09331656,1843.5,1843.4,2.8549]
[1743329683809,2.53171656,1843.5,1843.4,2.8549]
[1743329687510,1.44652656,1843.5,1843.4,3.94015]
[1743329687716,2.53171656,1843.5,1843.4,2.8549]
[1743329698818,2.53171656,1843.5,1843.4,3.94015]
[1743329699021,0.00812656,1843.5,1843.4,3.94015]
[1743329700220,1.09331656,1843.5,1843.4,3.94015]
[1743329700418,1.09331656,1843.5,1843.4,2.8549]
[1743329701417,2.57881656,1843.5,1843.4,2.8549]
[1743329702913,0.00812656,1843.5,1843.4,3.94015]
[1743329704925,2.48111656,1843.5,1843.4,2.8549]
[1743329705415,2.48111656,1843.5,1843.4,3.94015]
[1743329705620,1.39592656,1843.5,1843.4,3.94015]
[1743329706322,0.00812656,1843.5,1843.4,3.94015]
[1743329715621,1.09331656,1843.5,1843.4,2.8549]
[1743329715819,2.58121656,1843.5,1843.4,2.8549]
[1743329716226,1.08527,1843.4,1843.3,0.7323]
[1743329716423,2.57317,1843.4,1843.3,0.7323]
[1743329721137,1.4879,1843.4,1843.2,5.4236]
[1743329721330,2.53121,1843.3,1843.2,5.4236]
[1743329722626,2.53121,1843.3,1843.2,6.50897]
[1743329722829,2.53121,1843.3,1843.2,5.4236]
[1743329723233,1.4459,1843.3,1843.2,6.50897]
[1743329724325,4.6537,1843.3,1843.2,3.30117]
[1743329724736,5.73904,1843.3,1843.1,1.09353656]
[1743329725037,1.4573,1843.2,1843.1,1.09353656]
[1743329725235,1.4573,1843.2,1843.1,2.54763656]
[1743329725434,1.4573,1843.2,1843.1,0.00812656]